[Event "GER-ch Youth ODJM 2019"]
[Site "Willingen"]
[Date "2019.06.13"]
[Round "7.5"]
[White "Arnold, Rubina"]
[Black "Grimm, Nicola Marie"]
[Result "1/2-1/2"]
[ECO "B01"]
[WhiteElo "1329"]
[BlackElo "1459"]
[Annotator "NA RC"]
[PlyCount "74"]
[EventDate "2019.06.07"]
[EventType "swiss"]
[EventRounds "9"]
[EventCountry "GER"]
[SourceTitle "playchess.com"]
[Source "ChessBase"]
[SourceQuality "1"]
[TimeControl "40/5400+30:1800+30"]

1. e4 {[%emt 0:00:00]} d5 {[%emt 0:00:00]} 2. exd5 {[%emt 0:00:08]} Qxd5 {[%emt 0:00:00]} 3. Nc3 {[%emt 0:00:46]} Qa5 {[%emt 0:00:14]} 4. Nf3 {[%emt 0:01:03]} Bf5 {[%emt 0:00:31]} 5. d4 {[%emt 0:01:51]} e6 {[%emt 0:03:01]} 6. Ne5 {[%emt 0:02:31]} c6 {[%emt 0:01:10]} 7. Bd3 {[%emt 0:01:39]} Bg6 {[%emt 0:00:29]} 8. Bf4 {[%emt 0:01:44]} Nf6 {[%emt 0:00:51]} 9. O-O {[%emt 0:01:08]} Qd8 {[%emt 0:02:35]} 10. Bg5 {[%emt 0:05:56]} Be7 {[%emt 0:03:22]} 11. Bxg6 {[%emt 0:05:37]} hxg6 {[%emt 0:01:23]} 12. Qd2 {[%emt 0:01:31]} Nbd7 {[%emt 0:00:59]} 13. Rad1 {[%emt 0:01:51]} Qc7 {[%emt 0:00:52]} 14. Bf4 {[%emt 0:03:19]} Bd6 {[%emt 0:02:06]} 15. Rfe1 {[%emt 0:02:14]} Nh5 {[%emt 0:03:31]} 16. Qe3 {[%emt 0:04:42]} Nb6 {[%emt 0:06:24]} 17. Bg3 {[%emt 0:03:58]} O-O-O {[%emt 0:06:08]} 18. a3 {[%emt 0:03:13]} Nxg3 19. fxg3 {[%emt 0:00:27]} Rh5 {[%emt 0:02:19]} 20. b4 {[%emt 0:02:22]} Bxe5 {[%emt 0:01:07]} 21. dxe5 {[%emt 0:00:25]} Rxd1 {[%emt 0:00:20]} 22. Rxd1 {[%emt 0:00:47]} Rxe5 {[%emt 0:01:09]} 23. Qd4 {[%emt 0:02:46]} Nd5 {[%emt 0:09:00]} 24. Qxa7 {[%emt 0:04:38]} Qb6+ {[%emt 0:05:08]} 25. Qxb6 {[%emt 0:03:40]} Nxb6 {[%emt 0:01:15]} 26. a4 {[%emt 0:01:26]} Nc4 {[%emt 0:04:19]} 27. Rf1 {[%emt 0:06:05]} Rf5 {[%emt 0:00:27]} 28. Rxf5 {[%emt 0:00:55]} gxf5 {[%emt 0:01:33]} 29. Ne2 {[%emt 0:02:06]} Kc7 {[%emt 0:00:46]} 30. Kf2 {[%emt 0:00:57]} Kd6 {[%emt 0:00:26]} 31. Kf3 {[%emt 0:01:20]} Na3 {[%emt 0:09:42]} 32. c3 {[%emt 0:03:40]} Kd5 {[%emt 0:08:37]} 33. Ke3 Nc4+ {[%emt 0:02:01]} 34. Kf4 {[%emt 0:02:47]} Nb2 35. a5 Nd1 {[%emt 0:06:23]} 36. h4 {[%emt 0:04:44]} f6 {[%emt 0:01:53]} 37. g4 {[%emt 0:01:28]} fxg4 {[%emt 0:04:36] normal} 1/2-1/2

[Event "GER-ch Youth ODJM 2019"]
[Site "Willingen"]
[Date "2019.06.13"]
[Round "7.6"]
[White "Thumm, Felix"]
[Black "Knerr, Sebastian"]
[Result "0-1"]
[ECO "D05"]
[WhiteElo "1836"]
[BlackElo "1685"]
[Annotator "NA RC"]
[PlyCount "44"]
[EventDate "2019.06.07"]
[EventType "swiss"]
[EventRounds "9"]
[EventCountry "GER"]
[SourceTitle "playchess.com"]
[Source "ChessBase"]
[SourceQuality "1"]
[TimeControl "40/5400+30:1800+30"]

1. d4 {[%emt 0:00:00]} d5 {[%emt 0:01:11]} 2. Nf3 {[%emt 0:00:00]} Nf6 {[%emt 0:01:27]} 3. e3 {[%emt 0:00:07]} e6 {[%emt 0:02:21]} 4. Nbd2 {[%emt 0:02:58]} Bd6 {[%emt 0:03:07]} 5. Bd3 {[%emt 0:03:54]} Nbd7 {[%emt 0:02:13]} 6. e4 {[%emt 0:15:26]} e5 {[%emt 0:04:02]} 7. O-O {[%emt 0:16:56]} O-O {[%emt 0:06:38]} 8. exd5 {[%emt 0:07:44]} Nxd5 {[%emt 0:03:34]} 9. dxe5 {[%emt 0:02:23]} Nxe5 {[%emt 0:03:05]} 10. Nxe5 {[%emt 0:02:59]} Bxe5 {[%emt 0:01:40]} 11. Bxh7+ {[%emt 0:00:53]} Kxh7 {[%emt 0:02:28]} 12. Qh5+ {[%emt 0:00:17]} Kg8 {[%emt 0:00:09]} 13. Qxe5 {[%emt 0:00:08]} Re8 {[%emt 0:01:25]} 14. Qd4 {[%emt 0:01:30]} Bf5 {[%emt 0:01:31]} 15. c3 {[%emt 0:04:15]} c5 {[%emt 0:03:35]} 16. Qxc5 {[%emt 0:28:57]} Bd3 {[%emt 0:01:43]} 17. Qd4 {[%emt 0:08:23]} Bxf1 {[%emt 0:01:55]} 18. Kxf1 {[%emt 0:01:09]} Qe7 {[%emt 0:01:06]} 19. g3 {[%emt 0:00:45]} Qe2+ {[%emt 0:03:16]} 20. Kg2 {[%emt 0:00:05]} Ne3+ {[%emt 0:00:21]} 21. Kh3 {[%emt 0:00:42]} Qxf2 {[%emt 0:02:12]} 22. Kh4 {[%emt 0:00:53]} Nf5+ {normal} 0-1

[Event "GER-ch Youth ODJM 2019"]
[Site "Willingen"]
[Date "2019.06.13"]
[Round "7.7"]
[White "Andresen, Marc"]
[Black "Dartmann Aubanell, Catriona"]
[Result "0-1"]
[ECO "C06"]
[WhiteElo "1428"]
[BlackElo "1728"]
[Annotator "NA RC"]
[PlyCount "122"]
[EventDate "2019.06.07"]
[EventType "swiss"]
[EventRounds "9"]
[EventCountry "GER"]
[SourceTitle "playchess.com"]
[Source "ChessBase"]
[SourceQuality "1"]
[TimeControl "40/5400+30:1800+30"]

1. e4 {[%emt 0:00:00]} e6 {[%emt 0:00:00]} 2. d4 {[%emt 0:00:00]} d5 {[%emt 0:00:00]} 3. Nd2 {[%emt 0:00:00]} Nf6 {[%emt 0:00:06]} 4. e5 {[%emt 0:00:00]} Nfd7 {[%emt 0:00:05]} 5. c3 {[%emt 0:00:00]} c5 {[%emt 0:00:16]} 6. Bd3 {[%emt 0:00:09]} Nc6 {[%emt 0:00:31]} 7. Ne2 {[%emt 0:00:12]} cxd4 {[%emt 0:01:05]} 8. cxd4 {[%emt 0:00:07]} Qb6 {[%emt 0:00:16]} 9. Nf3 {[%emt 0:00:48]} Be7 {[%emt 0:00:50]} 10. O-O {[%emt 0:04:21]} O-O {[%emt 0:00:53]} 11. Re1 {[%emt 0:01:20]} f6 {[%emt 0:10:05]} 12. exf6 {[%emt 0:00:33]} Nxf6 {[%emt 0:00:12]} 13. Nf4 {[%emt 0:06:00]} Re8 {[%emt 0:09:59]} 14. a3 {[%emt 0:15:26]} Bd6 {[%emt 0:02:32]} 15. Rb1 {[%emt 0:02:41]} Qc7 {[%emt 0:02:18]} 16. Ne2 {[%emt 0:22:26]} e5 {[%emt 0:04:26]} 17. dxe5 {[%emt 0:06:04]} Nxe5 {[%emt 0:00:32]} 18. Nxe5 {[%emt 0:00:06]} Bxe5 {[%emt 0:00:14]} 19. Ng3 {[%emt 0:00:43]} Bg4 {[%emt 0:03:36]} 20. Be2 {[%emt 0:12:30]} Bxg3 {[%emt 0:13:24]} 21. hxg3 {[%emt 0:03:48]} Bxe2 {[%emt 0:00:14]} 22. Rxe2 {[%emt 0:00:18]} Rxe2 {[%emt 0:00:10]} 23. Qxe2 {[%emt 0:00:38]} Re8 {[%emt 0:01:04]} 24. Qd1 {[%emt 0:03:57]} d4 {[%emt 0:05:16]} 25. Bf4 {[%emt 0:01:50]} Qc4 {[%emt 0:01:25]} 26. Rc1 {[%emt 0:01:13]} Qd5 {[%emt 0:05:27]} 27. Qd3 {[%emt 0:02:01]} Qe4 {[%emt 0:06:27]} 28. Qxe4 {[%emt 0:03:20]} Rxe4 {[%emt 0:00:28]} 29. Rd1 {[%emt 0:00:03]} Re2 {[%emt 0:04:13]} 30. f3 {[%emt 0:00:45]} Rxb2 {[%emt 0:02:09]} 31. Rxd4 {[%emt 0:00:11]} Ra2 {[%emt 0:01:47]} 32. Bd6 {[%emt 0:01:31]} Kf7 {[%emt 0:04:16]} 33. Rc4 {[%emt 0:01:26]} Ne8 {[%emt 0:03:30]} 34. Rf4+ {[%emt 0:01:50]} Ke6 {[%emt 0:01:05]} 35. Bf8 {[%emt 0:00:09]} a6 {[%emt 0:04:30]} 36. Re4+ {[%emt 0:01:44]} Kf7 {[%emt 0:01:12]} 37. Bc5 {[%emt 0:01:38]} Nf6 {[%emt 0:02:58]} 38. Re7+ {[%emt 0:00:25]} Kg6 {[%emt 0:01:08]} 39. Rxb7 {[%emt 0:00:11]} Rd2 {[%emt 0:00:32]} 40. Rb6 {[%emt 0:02:05]} Rd5 {[%emt 0:01:19]} 41. Bb4 {[%emt 0:08:16]} a5 {[%emt 0:01:25]} 42. Bc3 {[%emt 0:00:08]} Rd3 {[%emt 0:01:00]} 43. Bb2 {[%emt 0:01:20]} Kf7 {[%emt 0:04:33]} 44. Ra6 {[%emt 0:03:28]} Rd1+ {[%emt 0:03:32]} 45. Kh2 {[%emt 0:00:07]} Rd5 {[%emt 0:04:09]} 46. Bc3 {[%emt 0:01:15]} Rc5 {[%emt 0:01:25]} 47. Bxa5 {[%emt 0:00:15]} Nd5 {[%emt 0:00:33]} 48. Bd2 {[%emt 0:07:08]} Rc2 {[%emt 0:01:30]} 49. Bf4 {[%emt 0:01:31]} Rc4 {[%emt 0:00:58]} 50. Be5 {[%emt 0:02:04]} Nf6 {[%emt 0:02:05]} 51. g4 {[%emt 0:05:35]} Rc5 {[%emt 0:04:21]} 52. Bxf6 {[%emt 0:00:26]} gxf6 {[%emt 0:00:09]} 53. Ra8 {[%emt 0:00:06]} Rc2 {[%emt 0:01:08]} 54. Kh3 {[%emt 0:00:52]} Kg6 {[%emt 0:01:15]} 55. a4 {[%emt 0:00:20]} Ra2 {[%emt 0:00:21]} 56. a5 {[%emt 0:00:05]} Kg7 {[%emt 0:00:24]} 57. a6 {[%emt 0:00:08]} h6 {[%emt 0:00:24]} 58. a7 {[%emt 0:00:05]} Kh7 {[%emt 0:00:14]} 59. Kh4 {[%emt 0:00:12]} Kg7 {[%emt 0:00:39]} 60. f4 {[%emt 0:00:32]} Kh7 {[%emt 0:01:01]} 61. g3 Rh2# {normal} 0-1

[Event "GER-ch Youth ODJM 2019"]
[Site "Willingen"]
[Date "2019.06.13"]
[Round "7.8"]
[White "Schilay, Eva"]
[Black "Petri, Ben-Luca"]
[Result "0-1"]
[ECO "C28"]
[WhiteElo "1628"]
[BlackElo "1895"]
[Annotator "NA RC"]
[PlyCount "60"]
[EventDate "2019.06.07"]
[EventType "swiss"]
[EventRounds "9"]
[EventCountry "GER"]
[SourceTitle "playchess.com"]
[Source "ChessBase"]
[SourceQuality "1"]
[TimeControl "40/5400+30:1800+30"]

1. e4 {[%emt 0:00:00]} Nf6 {[%emt 0:00:00]} 2. Nc3 {[%emt 0:00:00]} e5 {[%emt 0:00:26]} 3. Bc4 {[%emt 0:00:03]} Nc6 {[%emt 0:00:09]} 4. d3 {[%emt 0:00:12]} Na5 {[%emt 0:00:11]} 5. Nf3 {[%emt 0:01:16]} Nxc4 {[%emt 0:01:01]} 6. dxc4 {[%emt 0:00:14]} d6 {[%emt 0:00:04]} 7. O-O {[%emt 0:02:24]} Be7 {[%emt 0:00:10]} 8. Be3 {[%emt 0:00:20]} O-O {[%emt 0:00:13]} 9. Qe2 {[%emt 0:01:02]} Ng4 {[%emt 0:04:58]} 10. Rad1 {[%emt 0:01:19]} Nxe3 {[%emt 0:00:17]} 11. Qxe3 {[%emt 0:00:08]} Qe8 {[%emt 0:00:46]} 12. Nd5 {[%emt 0:00:33]} Bd8 {[%emt 0:01:52]} 13. Rd2 {[%emt 0:08:46]} c6 {[%emt 0:03:45]} 14. Nc3 {[%emt 0:00:28]} Qe7 {[%emt 0:00:30]} 15. Rfd1 {[%emt 0:00:32]} Bc7 {[%emt 0:00:09]} 16. h3 {[%emt 0:03:06]} Be6 {[%emt 0:03:20]} 17. b3 {[%emt 0:01:18]} h6 {[%emt 0:03:11]} 18. Na4 {[%emt 0:03:20]} Rfd8 {[%emt 0:01:42]} 19. Qc3 {[%emt 0:05:21]} f5 {[%emt 0:14:26]} 20. c5 {[%emt 0:24:39]} d5 {[%emt 0:00:27]} 21. exd5 {[%emt 0:00:32]} Bxd5 {[%emt 0:00:23]} 22. Re2 {[%emt 0:21:08]} Bxf3 {[%emt 0:00:49]} 23. Rxd8+ {[%emt 0:00:05]} Rxd8 {[%emt 0:00:07]} 24. Qxf3 {[%emt 0:00:09]} Rd1+ {[%emt 0:00:04]} 25. Kh2 {[%emt 0:00:58]} e4+ {[%emt 0:00:48]} 26. g3 {[%emt 0:00:20]} Qd7 {[%emt 0:02:58]} 27. Qe3 {[%emt 0:01:20]} Qd4 {[%emt 0:00:54]} 28. Kg2 {[%emt 0:03:15]} Qa1 {[%emt 0:02:13]} 29. f3 {[%emt 0:01:56]} Rh1 {[%emt 0:02:44]} 30. fxe4 {[%emt 0:02:42]} Qf1# {[%emt 0:00:11] normal} 0-1

[Event "GER-ch Youth ODJM 2019"]
[Site "Willingen"]
[Date "2019.06.13"]
[Round "7.9"]
[White "Wuebker, Paul-Luca"]
[Black "Parvanyan, Alfred"]
[Result "0-1"]
[ECO "D85"]
[WhiteElo "2035"]
[BlackElo "2066"]
[Annotator "NA"]
[PlyCount "49"]
[EventDate "2019.06.07"]
[EventType "swiss"]
[EventRounds "9"]
[EventCountry "GER"]
[SourceTitle "playchess.com"]
[Source "ChessBase"]
[SourceQuality "1"]
[TimeControl "40/5400+30:1800+30"]

1. d4 {[%emt 0:00:00]} Nf6 {[%emt 0:00:00]} 2. c4 {[%emt 0:00:00]} g6 {[%emt 0:00:00]} 3. Nc3 {[%emt 0:00:00]} d5 {[%emt 0:00:00]} 4. cxd5 {[%emt 0:00:01]} Nxd5 {[%emt 0:00:07]} 5. e4 {[%emt 0:00:09]} Nxc3 {[%emt 0:00:10]} 6. bxc3 {[%emt 0:00:10]} Bg7 {[%emt 0:00:03]} 7. Be3 {[%emt 0:00:14]} c5 {[%emt 0:00:07]} 8. Nf3 {[%emt 0:00:08]} Qa5 {[%emt 0:00:14]} 9. Qd2 {[%emt 0:00:14]} Nc6 {[%emt 0:00:11]} 10. Rb1 {[%emt 0:01:01]} a6 {[%emt 0:00:23]} 11. Rc1 {[%emt 0:00:08]} O-O {[%emt 0:01:08]} 12. d5 {[%emt 0:00:31]} Rd8 {[%emt 0:04:38]} 13. c4 {[%emt 0:05:47]} Nb4 {[%emt 0:07:02]} 14. a3 {[%emt 0:10:17]} Qxa3 {[%emt 0:01:04]} 15. Bxc5 {[%emt 0:00:10]} Nc2+ {[%emt 0:04:16]} 16. Rxc2 {[%emt 0:03:22]} Qxc5 {[%emt 0:00:10]} 17. Be2 {[%emt 0:01:57]} Bd7 {[%emt 0:06:22]} 18. O-O {[%emt 0:01:10]} a5 {[%emt 0:08:03]} 19. Rb1 {[%emt 0:03:27]} Ra7 {[%emt 0:01:04]} 20. Qe3 {[%emt 0:05:56]} Rc8 {[%emt 0:03:38]} 21. Ra2 {[%emt 0:04:32]} a4 {[%emt 0:14:19]} 22. Qxc5 {[%emt 0:04:49]} Rxc5 {[%emt 0:00:04]} 23. Ra3 {[%emt 0:00:09]} e6 {[%emt 0:11:00]} 24. Ne1 {[%emt 0:03:01]} Rc8 {[%emt 0:06:44]} 25. Nd3 {[%emt 0:04:24] normal} 0-1

[Event "GER-ch Youth ODJM 2019"]
[Site "Willingen"]
[Date "2019.06.13"]
[Round "7.10"]
[White "Reimer, Philip"]
[Black "von Estorff, Jacob"]
[Result "0-1"]
[ECO "B38"]
[WhiteElo "1891"]
[BlackElo "2041"]
[Annotator "NA"]
[PlyCount "62"]
[EventDate "2019.06.07"]
[EventType "swiss"]
[EventRounds "9"]
[EventCountry "GER"]
[SourceTitle "playchess.com"]
[Source "ChessBase"]
[SourceQuality "1"]
[TimeControl "40/5400+30:1800+30"]

1. e4 {[%emt 0:00:00]} c5 {[%emt 0:00:00]} 2. Nf3 {[%emt 0:00:00]} Nc6 {[%emt 0:00:02]} 3. d4 {[%emt 0:00:00]} cxd4 {[%emt 0:00:04]} 4. Nxd4 {[%emt 0:00:00]} g6 {[%emt 0:00:22]} 5. c4 {[%emt 0:00:00]} Bg7 {[%emt 0:00:05]} 6. Be3 {[%emt 0:00:00]} Nf6 {[%emt 0:01:16]} 7. Nc3 {[%emt 0:00:00]} d6 {[%emt 0:01:16]} 8. Be2 {[%emt 0:00:42]} O-O {[%emt 0:00:14]} 9. O-O {[%emt 0:00:03]} Bd7 {[%emt 0:01:51]} 10. f3 {[%emt 0:00:05]} Rc8 {[%emt 0:02:01]} 11. Qd2 {[%emt 0:03:25]} Re8 {[%emt 0:01:24]} 12. Nxc6 {[%emt 0:01:09]} bxc6 {[%emt 0:02:53]} 13. Rad1 {[%emt 0:14:13]} Qc7 {[%emt 0:05:20]} 14. f4 {[%emt 0:22:50]} Ng4 {[%emt 0:09:12]} 15. Kh1 {[%emt 0:05:03]} Nxe3 {[%emt 0:02:18]} 16. Qxe3 {[%emt 0:00:47]} Qa5 {[%emt 0:02:03]} 17. c5 {[%emt 0:03:07]} Bxc3 {[%emt 0:10:39]} 18. bxc3 {[%emt 0:02:39]} Rc7 {[%emt 0:20:07]} 19. cxd6 {[%emt 0:03:56]} exd6 {[%emt 0:00:05]} 20. Rxd6 {[%emt 0:01:09]} Qxa2 {[%emt 0:02:00]} 21. Rfd1 {[%emt 0:05:35]} Be6 {[%emt 0:06:16]} 22. R6d2 {[%emt 0:07:41]} Qa5 {[%emt 0:04:35]} 23. Qg3 {[%emt 0:03:30]} Rce7 {[%emt 0:05:56]} 24. c4 {[%emt 0:10:08]} Qc5 {[%emt 0:01:50]} 25. Rd4 {[%emt 0:00:38]} a5 {[%emt 0:00:59]} 26. Bf1 {[%emt 0:06:44]} f6 {[%emt 0:02:15]} 27. Qc3 {[%emt 0:05:48]} Bg4 {[%emt 0:06:04]} 28. Ra1 {[%emt 0:01:10]} Qb4 {[%emt 0:00:53]} 29. Qg3 {[%emt 0:00:59]} Qb2 {[%emt 0:02:23]} 30. Rxa5 {[%emt 0:00:36]} Qxd4 {[%emt 0:00:16]} 31. Qxg4 {[%emt 0:00:11]} Rxe4 {[%emt 0:00:24] normal} 0-1

[Event "GER-ch Youth ODJM 2019"]
[Site "Willingen"]
[Date "2019.06.13"]
[Round "7.11"]
[White "Korten, Lando"]
[Black "Leser, Katrin"]
[Result "1-0"]
[ECO "D35"]
[WhiteElo "2122"]
[BlackElo "2036"]
[Annotator "NA"]
[PlyCount "36"]
[EventDate "2019.06.07"]
[EventType "swiss"]
[EventRounds "9"]
[EventCountry "GER"]
[SourceTitle "playchess.com"]
[Source "ChessBase"]
[SourceQuality "1"]
[TimeControl "40/5400+30:1800+30"]

1. d4 {[%emt 0:00:00]} Nf6 {[%emt 0:00:00]} 2. c4 {[%emt 0:00:00]} e6 {[%emt 0:00:00]} 3. Nc3 {[%emt 0:00:00]} d5 {[%emt 0:00:00]} 4. cxd5 {[%emt 0:00:00]} exd5 {[%emt 0:00:00]} 5. Bg5 {[%emt 0:00:00]} Be7 {[%emt 0:00:00]} 6. e3 {[%emt 0:00:03]} c6 {[%emt 0:00:05]} 7. Bd3 {[%emt 0:00:53]} Nbd7 {[%emt 0:00:08]} 8. Nf3 {[%emt 0:00:11]} Ne4 {[%emt 0:09:08]} 9. Bf4 {[%emt 0:00:55]} Ndf6 {[%emt 0:13:55]} 10. Qc2 {[%emt 0:01:24]} Nd6 {[%emt 0:06:29]} 11. h3 {[%emt 0:00:55]} g6 {[%emt 0:00:57]} 12. g4 {[%emt 0:05:49]} Be6 {[%emt 0:11:14]} 13. O-O-O {[%emt 0:05:25]} Qa5 {[%emt 0:04:30]} 14. Be5 {[%emt 0:04:57]} Rg8 {[%emt 0:04:26]} 15. Ng5 {[%emt 0:03:03]} O-O-O {[%emt 0:05:11]} 16. Kb1 {[%emt 0:06:45]} Nd7 {[%emt 0:14:04]} 17. Bxd6 {[%emt 0:09:06]} Bxg5 {[%emt 0:01:41]} 18. b4 {[%emt 0:00:53]} Qa3 {[%emt 0:01:18] normal} 1-0

[Event "GER-ch Youth ODJM 2019"]
[Site "Willingen"]
[Date "2019.06.13"]
[Round "7.12"]
[White "Weber, Jannis"]
[Black "Brunner, Tobias"]
[Result "1-0"]
[ECO "B01"]
[WhiteElo "1889"]
[BlackElo "2017"]
[Annotator "NA"]
[PlyCount "75"]
[EventDate "2019.06.07"]
[EventType "swiss"]
[EventRounds "9"]
[EventCountry "GER"]
[SourceTitle "playchess.com"]
[Source "ChessBase"]
[SourceQuality "1"]
[TimeControl "40/5400+30:1800+30"]

1. e4 {[%emt 0:00:00]} d5 {[%emt 0:00:00]} 2. exd5 {[%emt 0:00:00]} Qxd5 {[%emt 0:00:00]} 3. Nc3 {[%emt 0:00:30]} Qa5 {[%emt 0:00:46]} 4. d4 {[%emt 0:01:55]} c6 {[%emt 0:03:23]} 5. Nf3 {[%emt 0:01:15]} Nf6 {[%emt 0:00:27]} 6. Bc4 {[%emt 0:01:08]} e6 {[%emt 0:03:32]} 7. Bd2 {[%emt 0:08:06]} Qb6 {[%emt 0:03:18]} 8. a3 {[%emt 0:04:23]} Bd6 {[%emt 0:01:47]} 9. O-O {[%emt 0:02:55]} O-O {[%emt 0:00:33]} 10. Qe2 {[%emt 0:05:33]} Re8 {[%emt 0:05:10]} 11. b4 {[%emt 0:07:33]} a6 {[%emt 0:01:53]} 12. Ne4 {[%emt 0:05:45]} Be7 {[%emt 0:05:33]} 13. c3 {[%emt 0:08:12]} Nbd7 {[%emt 0:01:46]} 14. Neg5 {[%emt 0:13:00]} Nd5 {[%emt 0:16:40]} 15. Rfe1 {[%emt 0:04:45]} Nf8 {[%emt 0:07:06]} 16. Bd3 {[%emt 0:02:40]} Qc7 {[%emt 0:08:09]} 17. g3 {[%emt 0:09:44]} Bf6 {[%emt 0:04:46]} 18. c4 {[%emt 0:06:07]} Ne7 {[%emt 0:01:41]} 19. Bc3 {[%emt 0:00:55]} Neg6 {[%emt 0:01:23]} 20. h4 {[%emt 0:01:09]} Qe7 {[%emt 0:03:24]} 21. Ne4 {[%emt 0:01:16]} Nd7 {[%emt 0:03:03]} 22. Nxf6+ {[%emt 0:01:23]} Nxf6 {[%emt 0:00:38]} 23. Ne5 {[%emt 0:00:25]} Nf8 {[%emt 0:01:24]} 24. g4 {[%emt 0:03:39]} N6d7 {[%emt 0:02:12]} 25. Nf3 {[%emt 0:00:55]} Ng6 {[%emt 0:01:00]} 26. Bxg6 {[%emt 0:03:39]} hxg6 {[%emt 0:00:12]} 27. d5 {[%emt 0:00:42]} Nf6 {[%emt 0:01:21]} 28. Qe5 {[%emt 0:01:12]} cxd5 {[%emt 0:02:23]} 29. cxd5 {[%emt 0:00:09]} Qf8 {[%emt 0:01:18]} 30. d6 {[%emt 0:02:58]} Bd7 {[%emt 0:00:46]} 31. g5 {[%emt 0:00:25]} Nd5 {[%emt 0:00:16]} 32. Bb2 {[%emt 0:00:25]} Rac8 {[%emt 0:01:26]} 33. Rac1 {[%emt 0:00:06]} Nb6 {[%emt 0:01:32]} 34. Qd4 {[%emt 0:00:56]} Nd5 {[%emt 0:00:48]} 35. Ne5 {[%emt 0:00:42]} Rcd8 {[%emt 0:03:34]} 36. Rc7 {[%emt 0:01:20]} f6 {[%emt 0:03:24]} 37. Nxd7 {[%emt 0:00:55]} Qxd6 {[%emt 0:00:16]} 38. gxf6 {[%emt 0:00:22] normal} 1-0

[Event "GER-ch Youth ODJM 2019"]
[Site "Willingen"]
[Date "2019.06.13"]
[Round "7.13"]
[White "Gerlach, Felix Tobias"]
[Black "Gallasch, Robin"]
[Result "1/2-1/2"]
[ECO "A14"]
[WhiteElo "2079"]
[BlackElo "1889"]
[Annotator "NA"]
[PlyCount "70"]
[EventDate "2019.06.07"]
[EventType "swiss"]
[EventRounds "9"]
[EventCountry "GER"]
[SourceTitle "playchess.com"]
[Source "ChessBase"]
[SourceQuality "1"]
[TimeControl "40/5400+30:1800+30"]

1. c4 {[%emt 0:00:00]} Nf6 {[%emt 0:00:18]} 2. g3 {[%emt 0:00:00]} e6 {[%emt 0:00:07]} 3. Bg2 {[%emt 0:00:00]} d5 {[%emt 0:00:04]} 4. Nf3 {[%emt 0:00:00]} Be7 {[%emt 0:00:10]} 5. O-O {[%emt 0:00:01]} O-O {[%emt 0:00:04]} 6. b3 {[%emt 0:00:03]} b6 {[%emt 0:00:17]} 7. Bb2 {[%emt 0:00:05]} Bb7 {[%emt 0:00:07]} 8. e3 {[%emt 0:00:14]} c5 {[%emt 0:00:50]} 9. Nc3 Nbd7 {[%emt 0:01:06]} 10. Qe2 {[%emt 0:03:23]} Rc8 {[%emt 0:00:32]} 11. Rfd1 {[%emt 0:00:39]} Qc7 {[%emt 0:00:30]} 12. Rac1 {[%emt 0:01:15]} Rfd8 {[%emt 0:01:06]} 13. cxd5 {[%emt 0:08:04]} Nxd5 14. d4 {[%emt 0:01:30]} Nxc3 {[%emt 0:04:33]} 15. Rxc3 {[%emt 0:05:46]} Qb8 {[%emt 0:00:53]} 16. e4 {[%emt 0:02:08]} cxd4 {[%emt 0:09:25]} 17. Rxc8 {[%emt 0:02:04]} Qxc8 {[%emt 0:01:15]} 18. Nxd4 {[%emt 0:00:32]} Nf6 {[%emt 0:00:24]} 19. e5 {[%emt 0:04:02]} Nd5 {[%emt 0:02:42]} 20. Rc1 {[%emt 0:00:55]} Qa8 {[%emt 0:00:32]} 21. Bh3 {[%emt 0:11:11]} a6 {[%emt 0:07:20]} 22. Qh5 {[%emt 0:06:04]} g6 {[%emt 0:33:04]} 23. Qe2 {[%emt 0:06:23]} Bc5 {[%emt 0:04:15]} 24. Rd1 {[%emt 0:37:00]} Ne7 {[%emt 0:01:36]} 25. Rd2 {[%emt 0:04:56]} Bd5 {[%emt 0:01:12]} 26. Nc2 {[%emt 0:01:31]} Nf5 {[%emt 0:03:35]} 27. b4 {[%emt 0:01:53]} Bf8 {[%emt 0:00:06]} 28. a3 {[%emt 0:00:07]} Rc8 {[%emt 0:00:42]} 29. Ne3 {[%emt 0:00:59]} Nxe3 {[%emt 0:02:27]} 30. Qxe3 {[%emt 0:00:07]} Qc6 {[%emt 0:00:16]} 31. Bf1 {[%emt 0:00:37]} a5 {[%emt 0:03:41]} 32. b5 {[%emt 0:00:36]} Qb7 {[%emt 0:00:13]} 33. Bd4 {[%emt 0:00:57]} Bc5 {[%emt 0:01:00]} 34. h4 {[%emt 0:00:34]} Bxd4 {[%emt 0:04:34]} 35. Rxd4 {[%emt 0:00:07]} Rc5 {[%emt 0:04:35] normal} 1/2-1/2

[Event "GER-ch Youth ODJM 2019"]
[Site "Willingen"]
[Date "2019.06.13"]
[Round "7.14"]
[White "Behringer, Tom"]
[Black "Bargsten, Justus"]
[Result "0-1"]
[ECO "B20"]
[WhiteElo "1766"]
[BlackElo "1980"]
[Annotator "NA"]
[PlyCount "34"]
[EventDate "2019.06.07"]
[EventType "swiss"]
[EventRounds "9"]
[EventCountry "GER"]
[SourceTitle "playchess.com"]
[Source "ChessBase"]
[SourceQuality "1"]
[TimeControl "40/5400+30:1800+30"]

1. e4 {[%emt 0:00:00]} c5 {[%emt 0:00:00]} 2. d3 {[%emt 0:01:15]} g6 {[%emt 0:02:19]} 3. f4 {[%emt 0:00:20]} Bg7 {[%emt 0:00:23]} 4. Nf3 {[%emt 0:00:37]} e6 {[%emt 0:00:06]} 5. Be2 {[%emt 0:02:37]} Ne7 {[%emt 0:00:18]} 6. c3 {[%emt 0:04:25]} Nbc6 {[%emt 0:05:09]} 7. O-O {[%emt 0:01:53]} d5 {[%emt 0:03:34]} 8. e5 {[%emt 0:00:39]} f6 {[%emt 0:00:54]} 9. d4 {[%emt 0:08:48]} Qb6 {[%emt 0:00:07]} 10. Kh1 {[%emt 0:11:14]} cxd4 {[%emt 0:00:41]} 11. cxd4 {[%emt 0:00:09]} Nf5 {[%emt 0:00:08]} 12. g4 {[%emt 0:00:57]} Nfxd4 {[%emt 0:18:18]} 13. Be3 {[%emt 0:00:33]} Qb4 14. b3 Qxb3 {[%emt 0:00:37]} 15. Nxd4 {[%emt 0:00:57]} Qb2 {[%emt 0:00:34]} 16. Nxc6 {[%emt 0:01:13]} Qxa1 {[%emt 0:01:23]} 17. Qc2 {[%emt 0:08:22]} bxc6 {[%emt 0:02:17] normal} 0-1